[Event "BCS-Floripa Super Blitz 2025"]
[Site "Florianopolis"]
[Date "2025.01.22"]
[Round "5.12"]
[White "Contreras Huaman, Fiorella"]
[Black "Pinero Rodriguez, Carlos Jose"]
[Result "1-0"]
[Annotator "TA"]
[ECO "B24"]
[WhiteElo "2170"]
[BlackElo "2311"]
[PlyCount "92"]
[EventDate "2025.01.18"]
[EventType "swiss"]
[EventCountry "BRA"]
[SourceTitle "playchess.com"]
[Source "ChessBase"]
[SourceQuality "1"]
[TimeControl "180+2"]

{[%evp 13,92,0,3,12,25,0,0,-16,19,31,9,13,19,-8,-5,-45,18,8,16,22,78,16,48,50,61,55,50,47,43,28,47,29,56,35,125,24,20,8,5,-44,-34,-71,-33,-34,-39,-107,-77,-206,-134,-204,-202,-183,-133,-173,-175,-189,-81,-77,18,-127,-61,-171,-127,-255,-199,-520,-476,-505,-480,-658,-577,-684,-525,-690,-663,-918,-921,-923,-895,-866,-833]} 1. e4 {[%emt 0:00:03]} c5 {[%emt 0:00:01]} 2. Nc3 {[%emt 0:00:03]} e6 {[%emt 0:00:01]} 3. Nge2 {[%emt 0:00:03]} Nc6 {[%emt 0:00:03]} 4. g3 {[%emt 0:00:05]} g6 {[%emt 0:00:03]} 5. Bg2 {[%emt 0:00:01]} Bg7 {[%emt 0:00:00]} 6. d3 {[%emt 0:00:01]} Nge7 {[%emt 0:00:08]} 7. Be3 {[%emt 0:00:02]} Nd4 {[%emt 0:00:02]} 8. O-O {[%emt 0:00:22]} h5 {[%emt 0:00:03]} 9. h3 {[%emt 0:00:02]} Rb8 {[%emt 0:00:05]} 10. Qd2 {[%emt 0:00:20]} b5 {[%emt 0:00:04] [#]} 11. b4 $1 {[%emt 0:00:16]} d6 {[%emt 0:00:06]} 12. Rab1 {[%emt 0:00:08]} Bd7 {[%emt 0:00:29]} 13. a3 {[%emt 0:00:16]} a5 {[%emt 0:00:09]} 14. Na2 {[%emt 0:00:01]} axb4 {[%emt 0:00:22]} ({Better is} 14... Nxe2+ $15 15. Qxe2 cxb4 16. axb4 a4) 15. axb4 $11 {[%emt 0:00:02]} Nxe2+ {[%emt 0:00:03]} 16. Qxe2 {[%emt 0:00:02]} Ra8 {[%emt 0:00:01]} (16... cxb4 $11 {remains equal.} 17. Nxb4 O-O) 17. c3 {[%emt 0:00:33]} ({White should play} 17. c4 $16) 17... Rc8 {[%emt 0:00:15]} 18. bxc5 {[%emt 0:00:21]} dxc5 {[%emt 0:00:02]} 19. d4 {[%emt 0:00:01] White is more active.} cxd4 {[%emt 0:00:16]} 20. cxd4 {[%emt 0:00:02]} O-O {[%emt 0:00:01]} 21. Nb4 {[%emt 0:00:09]} Rc4 {[%emt 0:00:02]} 22. Rfd1 {[%emt 0:00:06]} Qa5 {[%emt 0:00:01]} 23. Qd2 {[%emt 0:00:12]} Rfc8 {[%emt 0:00:11] [#]} (23... Qa8 $14) 24. Nd5 {[%emt 0:00:16]} Qd8 {[%emt 0:00:04]} 25. Nxe7+ {[%emt 0:00:03]} Qxe7 {[%emt 0:00:01]} 26. d5 {[%emt 0:00:07]} (26. Bf1 $11) 26... Bc3 $15 {[%emt 0:00:05]} 27. Qd3 {[%emt 0:00:02]} b4 {[%emt 0:00:02]} 28. d6 {[%emt 0:00:13]} Qf6 {[%emt 0:00:09]} 29. f4 {[%emt 0:00:01]} (29. h4 $15) 29... e5 $17 {[%emt 0:00:05]} 30. Rf1 {[%emt 0:00:03]} (30. Qd5 $17) 30... R8c6 {[%emt 0:00:16]} 31. fxe5 {[%emt 0:00:03]} (31. Qd5 $17 {was called for.}) 31... Qxe5 $19 {[%emt 0:00:04]} 32. Bf4 {[%emt 0:00:01]} Qd4+ {[%emt 0:00:01]} (32... Qe6 $19 33. Kh1 Rd4) 33. Qxd4 $17 {[%emt 0:00:00]} Bxd4+ {[%emt 0:00:12]} (33... Rxd4 34. e5 $17) 34. Kh1 {[%emt 0:00:01] [#]} Rc8 {[%emt 0:00:10]} (34... Rb6 $1 $19 {Hoping for ...b3.} 35. Rb3 Ba4) 35. Rfd1 {[%emt 0:00:04]} f6 {[%emt 0:00:12]} (35... Bc3 $17) 36. Rd3 {[%emt 0:00:03]} (36. Bf1 $11) 36... g5 {[%emt 0:00:03]} (36... Kf7 $17 37. h4 Bc3) 37. Be3 {[%emt 0:00:02]} ({White must play} 37. Bd2 $15) 37... Be5 {[%emt 0:00:04][%cal Oc4c3]} 38. Rbd1 {[%emt 0:00:03]} (38. Bd2 $17) 38... Rc3 $19 {[%emt 0:00:03]} ({Less strong is} 38... Bxg3 39. e5 Bxe5 40. Bd5+ Kh7 41. Bxc4 Rxc4 42. Kg1 $15) 39. Rxc3 $2 {[%emt 0:00:03]} (39. Bd4) 39... bxc3 {[%emt 0:00:02]} (39... Bxc3 $2 40. Rb1 $17) 40. Bc1 {[%emt 0:00:03]} Bxg3 {[%emt 0:00:06]} 41. Bf3 {[%emt 0:00:02]} h4 {[%emt 0:00:05]} 42. Kg2 {[%emt 0:00:01]} Be5 {[%emt 0:00:01]} 43. Kf2 {[%emt 0:00:01]} Rc6 {[%emt 0:00:01]} 44. Ke2 {[%emt 0:00:03]} Rxd6 {[%emt 0:00:02]} 45. Rxd6 {[%emt 0:00:02]} Bxd6 {[%emt 0:00:01]} 46. Bg2 {[%emt 0:00:02]} Bb5+ {[%emt 0:00:17]} 1-0

[Event "BCS-Floripa Super Blitz 2025"]
[Site "Florianopolis"]
[Date "2025.01.22"]
[Round "5.12"]
[White "Burgos, Marcelo Alves"]
[Black "De Oliveira, Jairo Quintiliano"]
[Result "0-1"]
[Annotator "TA"]
[ECO "D11"]
[WhiteElo "2080"]
[BlackElo "1947"]
[PlyCount "96"]
[EventDate "2025.01.18"]
[EventType "swiss"]
[EventCountry "BRA"]
[SourceTitle "playchess.com"]
[Source "ChessBase"]
[SourceQuality "1"]
[TimeControl "180+2"]

{[%evp 9,96,-34,-41,-61,-14,-20,-20,-33,-19,-28,-14,-28,-17,-23,-10,-23,-22,-13,-37,-80,-10,-12,0,-14,-12,-40,-41,-103,-93,-122,-105,-105,-83,-90,-91,-126,-125,-121,-121,-121,-116,-144,-77,-69,-12,-15,-15,-152,-132,-163,-113,-141,-133,-135,-116,-133,-115,-176,-190,-256,-256,-195,-89,-89,-89,-339,-224,-224,-178,-832,-812,-779,-779,-1203,-1172,-742,-706,-1326,-1326,-1250,-1233,-1249,-1114,-2183,-2132,-2052,-2004,-6318,-6281]} 1. d4 {[%emt 0:03:04]} d5 {[%emt 0:03:04]} 2. c4 {[%emt 0:00:02]} c6 3. Nf3 {[%emt 0:00:02]} Nf6 {[%emt 0:00:04]} 4. g3 dxc4 {[%emt 0:00:02]} 5. Nbd2 {[%emt 0:00:04]} b5 {[%emt 0:00:02]} 6. Bg2 {[%emt 0:00:02]} Bb7 (6... a5 $15) 7. O-O {[%emt 0:00:02]} e6 8. a4 {[%emt 0:00:02]} Nbd7 {[%emt 0:00:06]} 9. Qc2 {[%emt 0:00:02]} Be7 {[%emt 0:00:02]} 10. b3 {[%emt 0:00:02]} cxb3 {[%emt 0:00:02]} 11. Nxb3 {[%emt 0:00:02]} O-O {[%emt 0:00:02]} 12. Ne5 {[%emt 0:00:02]} Nxe5 {[%emt 0:00:02]} 13. dxe5 {[%emt 0:00:02]} Nd5 14. Bxd5 {[%emt 0:00:02]} cxd5 {[%emt 0:00:04]} (14... Qxd5 15. Rd1 Qc4 (15... Qxe5 16. Rd7 $16) 16. Qxc4 bxc4 17. Na5 $14) (14... exd5 $17 15. Be3 a5) 15. axb5 $11 {[%emt 0:00:02]} a6 {[%emt 0:00:02]} 16. bxa6 {[%emt 0:00:02]} Rxa6 {[%emt 0:00:02]} 17. Rxa6 {[%emt 0:00:02]} Bxa6 {[%emt 0:00:02]} 18. Be3 {[%emt 0:00:02] [#]} ({White should play} 18. Nd4 $15) 18... Qb8 $1 $17 {[%emt 0:00:02]} 19. Bd4 {[%emt 0:00:02] [#]} Bxe2 $1 {[%emt 0:00:02][%mdl 512]} 20. Rb1 {[%emt 0:00:02]} Bc4 {[%emt 0:00:02]} 21. Nd2 {[%emt 0:00:02] [#]} Qc7 $1 {[%emt 0:00:02]} 22. Rc1 {[%emt 0:00:02][%cal Rd2c4]} Rc8 {[%emt 0:00:02]} 23. Qa4 {[%emt 0:00:02]} Qc6 {[%emt 0:00:02]} 24. Qxc6 {[%emt 0:00:02]} Rxc6 25. Ra1 {[%emt 0:00:02]} Ra6 {[%emt 0:00:04]} (25... h6 26. Ra8+ Kh7) 26. Rb1 {[%emt 0:00:02]} g6 {[%emt 0:00:02]} ({Black should play} 26... Ra8 $15 27. Nxc4 dxc4) 27. Rb8+ {[%emt 0:00:02]} Kg7 {[%emt 0:00:02] With the idea ...Be2.} 28. Rc8 {[%emt 0:00:02]} (28. Nxc4 $11 {keeps the balance.} dxc4 29. Rc8) 28... Ra4 {[%emt 0:00:02]} 29. Rc7 {[%emt 0:00:02]} Bg5 {[%emt 0:00:02]} (29... Ba3 $19 30. Nf3 h6) 30. f4 {[%emt 0:00:02]} Bd8 {[%emt 0:00:02]} 31. Rc8 {[%emt 0:00:02]} Be7 {[%emt 0:00:02]} 32. Rc7 {[%emt 0:00:02]} Ba3 {[%emt 0:00:02]} 33. Nxc4 {[%emt 0:00:02]} (33. Kf2 $17) 33... Rxc4 $19 {[%emt 0:00:02]} 34. Rxc4 {[%emt 0:00:02]} (34. Bb6 $142) 34... dxc4 $17 {[%emt 0:00:02][%mdl 4096] Endgame KB-KB. Black is a pawn up.} 35. Kf2 Kf8 {[%emt 0:00:02]} (35... g5 $19 {and Black stays clearly on top.} 36. fxg5 Kg6) 36. Ke3 {[%emt 0:00:04]} Ke7 {[%emt 0:00:02]} 37. Kd2 $2 {[%emt 0:00:02]} (37. Bc3 $17 {was worth a try.}) 37... Bb4+ $19 {[%emt 0:00:02]} 38. Bc3 Bc5 {[%emt 0:00:02] Hoping for ...Kd7.} 39. h3 $2 {[%emt 0:00:04]} (39. Bb2) 39... Kd7 {[%emt 0:00:02]} 40. Ba5 {[%emt 0:00:02]} Kc6 41. Kc3 Kd5 42. Bd8 {[%emt 0:00:04]} Bf2 {[%emt 0:00:06]} 43. g4 {[%emt 0:00:02]} Be1+ {[%emt 0:00:02]} 44. Kc2 {[%emt 0:00:02]} Ke4 {[%emt 0:00:02]} 45. Bg5 {[%emt 0:00:02]} Bg3 {[%emt 0:00:02]} 46. Kc3 {[%emt 0:00:02]} Bxf4 {[%emt 0:00:02]} 47. Bh4 {[%emt 0:00:02]} Kd5 {[%emt 0:00:02]} 48. Bf6 Bxe5+ {[%emt 0:00:02]} 0-1

[Event "BCS-Floripa Super Blitz 2025"]
[Site "Florianopolis"]
[Date "2025.01.22"]
[Round "5.13"]
[White "Bambino Filho, Antonio Carlos"]
[Black "Serpa, Rafael Araujo"]
[Result "1-0"]
[Annotator "TA"]
[ECO "A13"]
[WhiteElo "2179"]
[BlackElo "2094"]
[PlyCount "77"]
[EventDate "2025.01.18"]
[EventType "swiss"]
[EventCountry "BRA"]
[SourceTitle "playchess.com"]
[Source "ChessBase"]
[SourceQuality "1"]
[TimeControl "180+2"]

{[%evp 9,76,21,6,12,14,8,8,0,0,0,2,-2,4,16,29,29,27,0,0,8,6,-18,0,-9,0,0,0,0,0,0,8,-9,-14,-25,0,-37,64,65,185,194,417,403,404,397,391,370,445,440,552,546,816,366,731,593,29987,29970,1884,572,572,439,6960,6395,29989,29990,29995,29996,29998,29999,29999]} 1. c4 {[%emt 0:00:02]} e6 {[%emt 0:00:01]} 2. Nf3 {[%emt 0:00:03]} d5 {[%emt 0:00:00]} 3. g3 {[%emt 0:00:03]} Nf6 {[%emt 0:00:01]} 4. Bg2 {[%emt 0:00:00]} dxc4 {[%emt 0:00:01]} 5. Qa4+ {[%emt 0:00:03]} Bd7 {[%emt 0:00:03]} 6. Qxc4 {[%emt 0:00:01]} c5 {[%emt 0:00:01]} 7. Ne5 {[%emt 0:00:02]} Qc8 {[%emt 0:00:05]} 8. O-O {[%emt 0:00:12]} Nc6 {[%emt 0:00:01]} 9. Nxd7 {[%emt 0:00:01]} Qxd7 {[%emt 0:00:11]} 10. b3 {[%emt 0:00:18]} a6 {[%emt 0:00:04]} 11. Bb2 {[%emt 0:00:03]} b5 {[%emt 0:00:09]} 12. Qc2 {[%emt 0:00:26]} Rc8 {[%emt 0:00:01]} 13. d3 {[%emt 0:00:05]} Be7 {[%emt 0:00:11]} 14. Nd2 {[%emt 0:00:01][%cal Bb1d2,Bd2f3,Bf3e5][%mdl 32]} O-O {[%emt 0:00:02]} 15. a4 {[%emt 0:00:02]} Rfd8 {[%emt 0:00:07]} 16. Nf3 {[%emt 0:00:10]} Nd5 {[%emt 0:00:20][%cal Oc6d4]} 17. axb5 {[%emt 0:00:07]} axb5 {[%emt 0:00:02]} 18. Ne5 {[%emt 0:00:21]} Ncb4 {[%emt 0:00:55] A dynamic duo of knights.} 19. Qd2 {[%emt 0:00:14]} Qc7 {[%emt 0:00:05]} 20. Rac1 {[%emt 0:00:10]} Bf6 {[%emt 0:00:04]} 21. f4 {[%emt 0:00:12]} Qb6 {[%emt 0:00:08] ...Na2 would now be deadly.} 22. Kh1 {[%emt 0:00:05] [#]} c4 {[%emt 0:00:21]} 23. bxc4 $14 {[%emt 0:00:05]} bxc4 {[%emt 0:00:19]} (23... Bxe5 $1 $14 24. cxd5 (24. Bxe5 bxc4 25. Rg1 cxd3 $15) 24... Bxb2 25. Rxc8 Rxc8 26. Qxb4 Bc3) 24. Nxc4 $18 {[%emt 0:00:01]} ({And not} 24. Rxc4 Bxe5 25. Rxc8 (25. fxe5 $2 {loses.} Rxc4 26. dxc4 Ne3 $19) 25... Rxc8 $11) 24... Rxc4 $2 {[%emt 0:00:06]} (24... Qc5 25. Ba3 Be7) 25. Rxc4 {[%emt 0:00:03]} Nc6 {[%emt 0:00:30]} 26. Bxf6 {[%emt 0:00:02]} gxf6 {[%emt 0:00:01]} 27. Bxd5 {[%emt 0:00:14]} Rxd5 {[%emt 0:00:01]} 28. Rfc1 {[%emt 0:00:04]} Nd4 {[%emt 0:00:04]} 29. e4 {[%emt 0:00:11]} Rd7 {[%emt 0:00:02] [#]} 30. f5 {[%emt 0:00:06]} e5 $2 {[%emt 0:00:01]} (30... exf5 31. exf5 Qb7+ 32. Qg2 Nxf5 33. Qxb7 Rxb7) 31. Qh6 {[%emt 0:00:11] Intending Rc8+ and mate.} Nf3 {[%emt 0:00:04]} 32. Rc8+ {[%emt 0:00:03]} Rd8 {[%emt 0:00:00]} 33. Rxd8+ {[%emt 0:00:03]} (33. Qh5 $142 Ng5 34. h4) 33... Qxd8 {[%emt 0:00:01][%mdl 4096] Endgame KQR-KQN} 34. Qe3 {[%emt 0:00:02]} Ng5 {[%emt 0:00:01]} (34... Nd4 $142 35. Qh6 Nb5) 35. h4 {[%emt 0:00:05][%cal Bh2h4,Bh4g5,Bg5f6][%mdl 32]} Qa5 {[%emt 0:00:06]} 36. hxg5 {[%emt 0:00:03]} Qa3 {[%emt 0:00:01]} 37. gxf6 {[%emt 0:00:04]} h5 {[%emt 0:00:02]} 38. Qg5+ {[%emt 0:00:03]} Kf8 {[%emt 0:00:01]} 39. Rc8# {[%emt 0:00:19]} 1-0

[Event "BCS-Floripa Super Blitz 2025"]
[Site "Florianopolis"]
[Date "2025.01.22"]
[Round "5.14"]
[White "Dauer, Andre Leonardo"]
[Black "Rodrigues Mota, Romulo Cardoso S"]
[Result "0-1"]
[Annotator "TA"]
[ECO "B90"]
[WhiteElo "2138"]
[BlackElo "1953"]
[PlyCount "76"]
[EventDate "2025.01.18"]
[EventType "swiss"]
[EventCountry "BRA"]
[SourceTitle "playchess.com"]
[Source "ChessBase"]
[SourceQuality "1"]
[TimeControl "180+2"]

{[%evp 22,76,14,0,3,-107,-64,-249,-210,-233,-227,-312,-317,-318,-312,-304,-310,-315,-312,-546,-551,-540,-562,-578,-518,-495,-469,-485,-410,-478,-493,-496,-488,-491,-476,-480,-468,-632,-619,-630,-436,-392,-395,-495,-479,-473,-473,-574,-580,-565,-568,-588,-591,-659,-637,-960,-943]} 1. e4 {[%emt 0:00:00]} c5 {[%emt 0:00:01]} 2. Nf3 {[%emt 0:00:01]} d6 {[%emt 0:00:00]} 3. d4 {[%emt 0:00:01]} cxd4 {[%emt 0:00:01]} 4. Nxd4 {[%emt 0:00:01]} Nf6 {[%emt 0:00:01]} 5. Nc3 {[%emt 0:00:01]} a6 {[%emt 0:00:01]} 6. f3 {[%emt 0:00:07]} e5 {[%emt 0:00:01]} 7. Nb3 {[%emt 0:00:01]} Be6 {[%emt 0:00:01]} 8. Be3 {[%emt 0:00:01]} Be7 {[%emt 0:00:01]} 9. Qd2 {[%emt 0:00:00]} O-O {[%emt 0:00:02]} 10. g4 {[%emt 0:00:01]} Nbd7 {[%emt 0:00:46]} 11. O-O-O {[%emt 0:00:05]} b5 {[%emt 0:00:01]} 12. h4 {[%emt 0:00:15]} Nb6 {[%emt 0:00:03]} 13. h5 {[%emt 0:00:02]} (13. g5 $11 Nh5 14. Qf2) 13... Nc4 {[%emt 0:00:02]} 14. Qf2 $2 {[%emt 0:00:11]} (14. Bxc4 $15 bxc4 15. Na1) 14... Nxe3 {[%emt 0:00:14]} 15. Qxe3 {[%emt 0:00:01]} b4 {[%emt 0:00:02]} 16. Ne2 {[%emt 0:00:12] [#]} Nxg4 $1 {[%emt 0:00:06]} 17. Qg1 {[%emt 0:00:11]} (17. fxg4 $2 Bg5 $19) 17... Bg5+ {[%emt 0:00:01]} 18. Kb1 {[%emt 0:00:01]} Be3 {[%emt 0:00:01]} (18... Ne3 19. Rd3 Nxf1 20. Qxf1 $19) 19. Qg2 {[%emt 0:00:25]} Nf2 {[%emt 0:00:22]} 20. h6 $2 {[%emt 0:00:05]} (20. Rg1 {only move.} g5 (20... Nxd1 21. Qxg7#) 21. Re1) 20... g6 $19 {[%emt 0:00:02] Active counter play!} ({And not} 20... Nxd1 21. Qxg7#) 21. Re1 {[%emt 0:00:15]} Nxh1 {[%emt 0:00:02]} 22. Qxh1 {[%emt 0:00:01]} Rc8 {[%emt 0:00:10] ...Qc7 would now be deadly.} 23. Nec1 {[%emt 0:00:08] [#]} Qc7 $1 {[%emt 0:00:06]} 24. Bd3 {[%emt 0:00:06]} (24. Na1 Bg5) 24... Bf4 {[%emt 0:00:02]} 25. Qh4 {[%emt 0:00:06]} f6 {[%emt 0:00:05]} 26. Ne2 {[%emt 0:00:07]} Bg5 {[%emt 0:00:02]} 27. Qf2 {[%emt 0:00:03]} Bc4 {[%emt 0:00:02]} (27... Bxh6 28. Qh2 Be3 29. Rh1) 28. Bxc4+ {[%emt 0:00:25]} Qxc4 {[%emt 0:01:40]} 29. Ng1 d5 {[%emt 0:00:00]} 30. Nh3 {[%emt 0:00:13]} dxe4 {[%emt 0:00:00]} 31. Rxe4 {[%emt 0:00:08]} Qd5 {[%emt 0:00:00]} 32. Qe2 {[%emt 0:00:13] Prevents Qd1+.} Rfd8 {[%emt 0:00:00] ( -> ...Qd1+)} 33. Nxg5 {[%emt 0:00:08]} Qd1+ {[%emt 0:00:00]} ({Much less strong is} 33... fxg5 34. a4 Qd1+ 35. Qxd1 Rxd1+ 36. Ka2) 34. Qxd1 {[%emt 0:00:05]} Rxd1+ {[%emt 0:00:00]} 35. Nc1 {[%emt 0:00:01]} fxg5 {[%emt 0:00:00]} 36. Rxe5 {[%emt 0:00:04]} Rd2 {[%emt 0:00:00]} 37. Re4 {[%emt 0:00:09]} a5 {[%emt 0:00:00]} 38. Re2 {[%emt 0:00:16]} Rcxc2 {[%emt 0:00:00]} 0-1

[Event "BCS-Floripa Super Blitz 2025"]
[Site "Florianopolis"]
[Date "2025.01.22"]
[Round "5.15"]
[White "Ribeiro, Regina"]
[Black "Ribeiro, Matheus Mendes Domin"]
[Result "0-1"]
[Annotator "TA"]
[ECO "A03"]
[WhiteElo "1899"]
[BlackElo "2328"]
[PlyCount "40"]
[EventDate "2025.01.18"]
[EventType "swiss"]
[EventCountry "BRA"]
[SourceTitle "playchess.com"]
[Source "ChessBase"]
[SourceQuality "1"]
[TimeControl "180+2"]

{[%evp 17,40,23,15,4,18,-40,-36,-37,-32,-53,-25,-52,-58,-64,-42,-70,-38,-98,-109,-126,-127,-92,-93,-125,-30]} 1. Nf3 {[%emt 0:00:01]} d5 {[%emt 0:00:01]} 2. b3 {[%emt 0:00:01]} Nf6 {[%emt 0:00:01]} 3. Bb2 {[%emt 0:00:00]} g6 {[%emt 0:00:01]} 4. e3 {[%emt 0:00:13]} Bg7 {[%emt 0:00:01]} 5. Be2 {[%emt 0:00:05]} O-O {[%emt 0:00:02]} 6. O-O {[%emt 0:00:01]} c5 {[%emt 0:00:00]} 7. Ne5 {[%emt 0:00:06]} Nc6 {[%emt 0:00:05]} 8. f4 {[%emt 0:00:01]} d4 {[%emt 0:00:05]} 9. Nxc6 {[%emt 0:00:23]} bxc6 {[%emt 0:00:01]} 10. Na3 {[%emt 0:00:04]} Nd5 {[%emt 0:00:06]} 11. exd4 {[%emt 0:00:30]} (11. Nc4 $11) 11... cxd4 $15 {[%emt 0:00:03][%cal Od4d3]} 12. Nc4 {[%emt 0:00:05]} Qc7 {[%emt 0:00:50]} 13. g3 $1 {[%emt 0:00:08][%cal Oc4e5]} c5 {[%emt 0:00:12]} 14. Bd3 {[%emt 0:00:16]} Bb7 $36 {[%emt 0:00:02][%mdl 2048] White is under pressure.} 15. Qe2 {[%emt 0:00:19]} e6 {[%emt 0:00:19]} 16. a4 {[%emt 0:00:12]} Rfe8 {[%emt 0:00:12] Hoping for ...e5.} 17. a5 {[%emt 0:00:05]} (17. Be4 $15) 17... Nb4 $17 {[%emt 0:00:02]} 18. Be4 {[%emt 0:00:11] Dodges Qc6} Bxe4 {[%emt 0:00:02]} 19. Qxe4 {[%emt 0:00:01]} f5 {[%emt 0:00:01]} 20. Qf3 {[%emt 0:00:08]} Rab8 {[%emt 0:00:22]} (20... Nxc2 $17 21. Rab1 Nb4) 0-1